bitfinex-derivatives/quotes_ETHF0:USTF0_20240924
["timestamp","ask_amount","ask_price","bid_price","bid_amount"]
[1727181566281,2.43124476,2643.5,2643.1,0.37835]
[1727181566282,0.37833,2643.3,2643.1,0.37835]
[1727181566781,0.37833,2643.3,2643.2,0.37834]
[1727181567986,0.37832,2643.4,2643.2,0.37834]
[1727181568572,0.37832,2643.4,2643.0,7.14062021]
[1727181568573,1.36819737,2643.4,2643.3,0.37833]
[1727181568781,0.37832,2643.4,2643.3,0.37833]
[1727181569480,1.36819737,2643.4,2643.3,0.37833]
[1727181569679,0.98987737,2643.4,2643.3,0.37833]
[1727181569992,0.37831,2643.4,2643.3,0.37833]
[1727181570288,1.36818737,2643.4,2643.3,0.37833]
[1727181570492,0.37833,2643.3,2643.1,0.37835]
[1727181570681,0.37833,2643.3,2643.2,0.37834]
[1727181570883,0.37833,2643.3,2643.0,7.14062021]
[1727181571082,0.37833,2643.3,2643.1,0.37836]
[1727181571386,0.37836,2643.1,2643.0,6.77762021]
[1727181571578,0.37836,2643.1,2642.9,0.3642]
[1727181571579,0.37837,2643.0,2642.9,0.3642]
[1727181571994,0.75827,2643.0,2642.9,0.3642]
[1727181573986,1.70421,2643.0,2642.9,0.3642]
[1727181574179,0.75827,2643.0,2642.9,0.3642]
[1727181574885,0.75827,2643.0,2642.9,0.74259]
[1727181575682,0.75827,2643.0,2642.9,0.3642]
[1727181576488,0.37839,2642.9,2642.8,2.66]
[1727181576789,0.37839,2642.9,2642.6,3.77552]
[1727181576993,0.37839,2642.9,2642.6,3.3971]
[1727181576994,0.37841,2642.7,2642.6,3.3971]
[1727181577297,0.37841,2642.7,2642.6,7.00327965]
[1727181580396,0.37841,2642.7,2642.6,5.57327965]
[1727181580893,0.37841,2642.7,2642.6,4.34327965]
[1727181581196,1.32456,2642.5,2642.4,0.3704]
[1727181581388,0.37847,2642.4,2642.2,2.21908563]
[1727181581694,0.37847,2642.4,2642.2,1.23]
[1727181581695,0.37847,2642.3,2642.2,1.23]
[1727181582391,0.37847,2642.3,2642.2,2.66]
[1727181582590,0.37847,2642.4,2642.2,3.03849]
[1727181582797,0.37847,2642.4,2642.2,2.66]
[1727181582994,1.36944837,2642.5,2642.3,0.37847]
[1727181583187,1.36944837,2642.5,2642.4,2.66]
[1727181583383,1.36944837,2642.5,2642.4,3.41786]
[1727181583384,0.99099837,2642.5,2642.4,3.41786]
[1727181583589,0.99099837,2642.5,2642.4,7.46628141]
[1727181584293,1.36943837,2642.5,2642.4,7.46628141]
[1727181584489,0.99099837,2642.5,2642.4,7.46628141]
[1727181585594,1.73663837,2642.6,2642.4,7.46628141]
[1727181585793,0.37844,2642.5,2642.4,7.08782141]
[1727181586893,2.31555837,2642.5,2642.4,4.42782141]
[1727181587097,0.37847,2642.3,2642.1,0.3668]
[1727181587397,0.74339,2642.2,2642.1,0.3668]
[1727181587902,0.3649,2642.2,2642.1,0.3668]
[1727181588198,0.37848,2642.3,2642.1,0.7453]
[1727181588398,0.37848,2642.3,2642.2,2.66]
[1727181589095,0.37848,2642.3,2642.2,3.03849]
[1727181589301,1.74825996,2642.4,2642.2,3.03849]
[1727181589501,0.37847,2642.3,2642.2,3.03849]
[1727181589693,0.3788,2642.4,2642.2,2.66]
[1727181589998,0.37847,2642.3,2642.2,3.03847]
[1727181590297,2.47646472,2642.7,2642.5,0.37844]
[1727181590499,2.47646472,2642.7,2642.2,3.60621]
[1727181590500,0.99098996,2642.7,2642.6,3.80713]
[1727181590695,4.57719996,2642.8,2642.7,0.37841]
[1727181591299,1.36939996,2642.8,2642.7,0.37841]
[1727181591499,0.37841,2642.8,2642.7,0.37841]
[1727181591695,1.36939996,2642.8,2642.7,0.37841]
[1727181591896,0.99098996,2642.8,2642.6,3.4287]
[1727181592095,2.81023476,2643.0,2642.6,3.80713]
[1727181592096,0.99098996,2642.9,2642.6,3.80713]
[1727181592311,0.99098996,2642.8,2642.6,3.4287]
[1727181592494,0.37841,2642.7,2642.6,3.80712]
[1727181592691,1.36939996,2642.8,2642.6,3.80712]
[1727181593003,0.37841,2642.7,2642.6,3.80712]
[1727181593800,1.36939996,2642.8,2642.6,3.80712]
[1727181594410,0.37841,2642.8,2642.6,3.80712]
[1727181594701,0.99098996,2642.8,2642.7,0.37841]
[1727181595096,0.99098996,2642.9,2642.8,0.3784]
[1727181595294,1.74816996,2643.0,2642.8,0.3784]
[1727181595491,1.36938996,2642.9,2642.7,0.7468]
[1727181595705,0.3784,2642.8,2642.7,0.3684]
[1727181596199,0.99098996,2642.9,2642.6,0.7687]
[1727181596401,0.99098996,2642.8,2642.6,0.7687]
[1727181596600,0.37841,2642.7,2642.6,0.7687]
[1727181596905,1.36939996,2642.8,2642.6,1.14713]
[1727181597099,0.37841,2642.7,2642.6,0.7687]
[1727181598199,0.37841,2642.7,2642.6,1.14713]
[1727181600606,1.36939996,2642.8,2642.6,1.14713]
[1727181600811,1.36939996,2642.8,2642.6,0.7687]
[1727181600812,0.37841,2642.8,2642.6,0.7687]
[1727181601006,0.99098996,2642.9,2642.6,3.4287]
[1727181601202,0.99098996,2642.9,2642.8,0.3784]
[1727181601403,1.36937996,2642.9,2642.8,0.3784]
[1727181601705,0.99098996,2642.9,2642.7,0.37841]
[1727181602001,0.3784,2642.8,2642.7,0.37841]
[1727181603715,1.36937996,2642.9,2642.8,0.3784]
[1727181603912,0.99098996,2642.9,2642.8,0.3784]
[1727181604410,1.74815996,2643.0,2642.9,0.37839]
[1727181604607,1.36929538,2643.0,2642.9,0.37839]
[1727181605498,1.74766538,2643.0,2642.9,0.37839]
[1727181607511,2.24264476,2643.0,2642.9,0.37839]
[1727181607709,2.43245819,2643.0,2642.9,0.37839]
[1727181608513,2.05408819,2643.0,2642.9,0.37839]
[1727181609406,2.43271908,2643.0,2642.9,0.37839]
[1727181609710,0.37839,2642.9,2642.8,1.60839]
[1727181609904,1.86462459,2642.9,2642.8,1.60839]
[1727181610215,0.37841,2642.8,2642.7,0.37841]
[1727181610507,1.86491256,2642.8,2642.7,0.37841]
[1727181610703,1.67580185,2642.8,2642.7,0.37841]
[1727181610906,1.86489256,2642.9,2642.8,0.3784]
[1727181611110,0.3784,2642.8,2642.7,0.3784]
[1727181611411,1.48650643,2642.8,2642.7,0.3784]
[1727181612707,1.86490643,2642.8,2642.7,0.3784]
[1727181613017,1.67580645,2642.8,2642.7,0.3784]
[1727181613311,1.67580495,2642.8,2642.7,0.3784]
[1727181613512,1.48650643,2642.8,2642.7,0.3784]
[1727181614826,0.99138715,2642.8,2642.7,0.3784]
[1727181616200,0.3784,2642.9,2642.8,0.3784]
[1727181616502,1.86592308,2642.9,2642.8,0.3784]
[1727181616709,2.05521776,2642.9,2642.8,0.3784]
[1727181617014,1.67681776,2642.9,2642.8,0.3784]
[1727181617216,1.67700781,2642.9,2642.8,0.3784]
[1727181618207,2.05545941,2642.9,2642.8,0.3784]
[1727181618615,2.05545968,2642.9,2642.8,0.3784]
[1727181618916,1.86616473,2642.9,2642.8,0.3784]
[1727181621014,2.05545807,2642.9,2642.8,0.3784]
[1727181622813,1.48777473,2642.9,2642.8,0.3784]
[1727181623016,1.86616473,2642.9,2642.8,0.3784]
[1727181623314,2.0554595,2642.9,2642.8,0.3784]
[1727181627219,1.48777473,2642.9,2642.8,0.3784]
[1727181627517,0.99191824,2642.9,2642.8,1.6084]
[1727181627721,0.99191824,2642.9,2642.8,2.98128563]
[1727181629107,0.99191824,2642.9,2642.8,3.92729563]
[1727181629312,1.86610473,2643.3,2642.9,0.37839]
[1727181629517,0.37833,2643.3,2643.2,1.60834]
[1727181629713,1.98330946,2643.3,2643.2,1.60834]
[1727181629907,2.17257314,2643.3,2643.2,1.60834]
[1727181630828,2.17257138,2643.3,2643.2,1.60834]
[1727181631516,2.17257138,2643.3,2643.2,0.37834]
[1727181631517,0.18926192,2643.3,2643.2,0.37834]
[1727181632220,2.17257138,2643.3,2643.2,0.37834]
[1727181632423,0.18926192,2643.3,2643.2,0.37834]
[1727181632718,2.36000946,2643.4,2643.3,0.37833]
[1727181632916,2.54926964,2643.4,2643.3,0.76843]
[1727181635217,2.54912375,2643.4,2643.3,0.76843]
[1727181635419,0.56596457,2643.4,2643.3,0.76843]
[1727181635724,2.35972454,2643.4,2643.3,0.76843]
[1727181635913,2.54898911,2643.4,2643.3,0.76843]
[1727181636120,0.56596457,2643.4,2643.3,0.76843]
[1727181636317,0.94427457,2643.4,2643.3,0.76843]
[1727181636518,0.56596457,2643.4,2643.3,0.76843]
[1727181636718,0.56596457,2643.4,2642.9,4.1965176]
[1727181636919,4.4378,2643.1,2642.4,1.4830764]
[1727181637119,0.37849,2642.2,2642.1,0.9887176]
[1727181637329,3.21380606,2642.2,2641.9,3.5785]
[1727181637519,0.37853,2641.9,2641.7,0.37855]
[1727181637825,0.37854,2641.9,2641.7,0.9887176]
[1727181638025,0.37854,2641.8,2641.7,0.9887176]
[1727181638324,2.71754864,2642.0,2641.6,0.9887176]
[1727181638325,0.37854,2641.9,2641.6,0.9887176]
[1727181638819,0.37854,2641.8,2641.7,3.93908533]
[1727181640624,0.37858,2641.6,2641.2,4.5751376]
[1727181640827,0.37859,2641.5,2641.2,4.1965176]
[1727181641022,0.37859,2641.5,2641.2,3.2078]
[1727181641523,0.37859,2641.5,2641.1,1.14044]
[1727181641718,0.37859,2641.5,2641.2,0.37863]
[1727181642027,0.37859,2641.5,2641.2,4.40448806]
[1727181642526,4.69534864,2641.8,2641.2,4.40447806]
[1727181642527,0.37858,2641.6,2641.2,4.40447806]
[1727181643217,0.37859,2641.5,2641.2,4.40447806]
[1727181643416,0.37858,2641.6,2641.2,4.40447806]
[1727181643611,3.2078,2641.8,2641.2,4.40447806]
[1727181643812,0.37859,2641.6,2641.2,4.40447806]
[1727181645226,0.37859,2641.5,2641.2,4.40447806]
[1727181645825,3.2078,2641.8,2641.3,0.37862]
[1727181646423,0.37859,2641.6,2641.3,0.37862]
[1727181648122,0.37859,2641.5,2641.3,0.37861]
[1727181648326,3.2078,2641.8,2641.2,4.40447806]
[1727181648531,0.37859,2641.5,2641.3,0.37861]
[1727181651422,0.37859,2641.5,2641.2,4.02585806]
[1727181652035,0.37861,2641.4,2641.2,4.02585806]
[1727181652233,0.37862,2641.3,2641.2,4.02585806]
[1727181652532,0.37862,2641.3,2640.4,3.2078]
[1727181652734,2.66,2641.4,2640.5,0.7472]
[1727181652735,0.3787,2640.8,2640.5,0.7472]
[1727181653028,0.3787,2640.7,2640.5,4.85124461]
[1727181653830,2.66,2640.9,2640.5,4.85124461]
[1727181654225,0.37871,2640.7,2640.5,4.85124461]
[1727181654929,0.37872,2640.6,2640.5,4.85124461]
[1727181655133,0.37872,2640.6,2640.5,4.10404461]
[1727181655327,0.37876,2640.3,2640.1,0.7273]
[1727181655728,0.37877,2640.3,2640.1,0.7273]
[1727181656134,0.37876,2640.3,2640.1,0.7273]
[1727181656431,0.94694,2640.2,2639.3,2.66]
[1727181656632,4.53574,2640.2,2639.5,1.0931]
[1727181656833,0.37884,2639.8,2639.7,3.95836856]
[1727181657029,0.37884,2639.8,2639.5,1.47197]
[1727181657229,0.37884,2639.8,2639.5,1.0931]
[1727181657428,0.37884,2639.8,2639.6,3.95836856]
[1727181657835,3.60698,2640.1,2639.6,3.95836856]
[1727181657836,0.37883,2639.9,2639.6,3.95836856]
[1727181658237,3.60698,2640.1,2639.6,3.95836856]
[1727181658238,0.37883,2639.8,2639.6,3.95836856]
[1727181658737,2.66,2640.1,2639.6,3.95836856]
[1727181659033,2.66,2640.1,2639.6,4.33721856]
[1727181659847,0.37882,2639.9,2639.6,4.33721856]
[1727181660431,0.37884,2639.7,2639.6,3.95836856]
[1727181661744,0.37884,2639.8,2639.6,3.95836856]
[1727181662038,0.381,2640.2,2639.6,3.95836856]
[1727181662039,3.5888,2640.2,2639.6,3.95836856]
[1727181662235,0.37882,2639.9,2639.7,0.37884]
[1727181662539,0.37881,2640.0,2639.7,0.37884]
[1727181663239,0.37881,2640.0,2639.8,0.37883]
[1727181663630,0.37882,2639.9,2639.7,0.37884]
[1727181665833,2.66,2640.1,2639.7,0.37884]
[1727181666036,0.37884,2639.8,2639.6,4.33722856]
[1727181666443,0.94701,2640.0,2639.6,4.33722856]
[1727181666739,0.37884,2639.8,2639.7,0.37884]
[1727181667037,0.37884,2639.8,2639.6,4.33721856]
[1727181667355,0.37882,2639.9,2639.7,0.37884]
[1727181667540,0.37882,2639.9,2639.8,0.37883]
[1727181667843,0.37881,2640.0,2639.6,3.95836856]
[1727181668041,0.37882,2639.9,2639.8,0.37882]
[1727181668244,0.37881,2640.0,2639.8,0.37882]
[1727181668442,0.37881,2640.0,2639.9,0.37882]
[1727181668648,2.66,2640.1,2639.7,0.3988]
[1727181669040,0.37881,2640.0,2639.8,0.37882]
[1727181669344,0.37881,2640.0,2639.9,0.37881]
[1727181669542,0.37873,2640.6,2640.1,0.94698]
[1727181669746,3.2078,2640.7,2640.2,0.3625]
[1727181669937,3.2078,2640.7,2640.4,0.37873]
[1727181670141,0.37873,2640.5,2640.4,0.37873]
[1727181671941,0.37875,2640.4,2640.3,0.37875]
[1727181672147,3.2078,2640.4,2640.0,0.3775]
[1727181672353,0.37879,2640.1,2640.0,0.75629]
[1727181672759,0.37879,2640.1,2640.0,4.79608706]
[1727181673044,3.03879,2640.1,2640.0,0.3775]
[1727181674438,3.03879,2640.1,2639.9,0.75441]
[1727181674643,0.3788,2640.0,2639.9,0.3756]
[1727181674837,3.0388,2640.1,2640.0,0.3788]
[1727181675038,3.2078,2640.4,2640.3,0.37876]
[1727181675256,0.94678,2640.7,2640.5,0.37872]
[1727181675257,0.37872,2640.6,2640.5,0.37872]
[1727181677147,0.37874,2640.5,2640.4,0.37874]
[1727181677650,0.37873,2640.6,2640.5,0.37873]
[1727181678047,3.5741,2640.7,2640.3,0.3776]
[1727181678241,3.5741,2640.7,2640.6,0.37872]
[1727181678242,3.2078,2640.7,2640.6,0.37872]
[1727181678650,3.5865,2640.7,2640.6,0.37872]
[1727181678854,3.5865,2640.7,2640.5,0.3904]
[1727181678855,0.37872,2640.6,2640.5,0.3904]
[1727181679040,3.03872,2640.6,2640.5,0.3904]
[1727181679350,0.37873,2640.5,2640.4,0.37874]
[1727181680759,2.66,2640.6,2640.3,0.3776]
[1727181680760,3.03872,2640.6,2640.5,0.37873]
[1727181680949,0.37872,2640.6,2640.5,0.37873]
[1727181681550,3.5942,2640.7,2640.6,0.37872]
[1727181681957,3.2078,2640.7,2640.6,0.37872]
[1727181682655,3.5865,2640.8,2640.7,0.3787]
[1727181682953,3.2078,2640.8,2640.7,0.3787]
[1727181683542,3.58649,2640.8,2640.7,0.3787]
[1727181687956,0.37871,2640.7,2640.6,0.3787]
[1727181688357,3.5865,2640.8,2640.7,0.3787]
[1727181690866,3.2078,2640.8,2640.7,0.3787]
[1727181691254,3.58649,2640.8,2640.7,0.3787]
[1727181691760,0.37871,2640.7,2640.6,0.3787]
[1727181691957,3.58649,2640.8,2640.7,0.3787]
[1727181692263,0.37867,2641.0,2640.9,0.37867]
[1727181692451,8.30195864,2641.2,2640.8,0.37868]
[1727181692452,0.37868,2640.9,2640.8,0.37868]
[1727181695766,0.37868,2640.9,2640.7,0.3787]
[1727181695767,0.37869,2640.8,2640.7,0.3787]
[1727181696152,0.94674,2640.8,2640.5,0.3884]
[1727181696351,0.37872,2640.6,2640.5,0.76712]
[1727181696551,0.37872,2640.6,2640.4,0.3741]
[1727181696552,0.37873,2640.5,2640.4,0.3741]
[1727181697056,0.37873,2640.5,2640.4,0.75284]
[1727181697761,3.58652,2640.6,2640.5,0.37873]
[1727181698062,0.37873,2640.5,2640.4,0.75284]
[1727181699658,3.2078,2640.6,2640.4,0.75284]
[1727181699659,3.58653,2640.6,2640.5,0.37873]
[1727181704666,0.94683,2640.5,2640.0,0.9887176]
[1727181704878,0.3788,2640.0,2639.9,0.7781]
[1727181705068,0.37882,2639.9,2639.8,0.37882]
[1727181705263,0.76862,2639.9,2639.8,0.37882]
[1727181705460,0.37883,2639.8,2639.7,3.2078]
[1727181705862,0.37884,2639.7,2639.6,1.16755]
[1727181706461,0.37884,2639.7,2639.6,1.16756]
[1727181706659,2.66,2639.8,2639.6,1.16756]
[1727181706660,2.66,2639.8,2639.7,0.37884]
[1727181707271,6.2576,2639.9,2639.7,0.37884]
[1727181707769,0.37883,2639.8,2639.7,0.37884]
[1727181708270,5.8678,2639.9,2639.8,0.37883]
[1727181708470,3.2078,2639.9,2639.8,0.37883]
[1727181709263,0.3788,2640.0,2639.9,0.37882]
[1727181709464,1.1357,2640.1,2639.9,0.37882]
[1727181709661,0.7569,2640.1,2639.9,0.37882]
[1727181709863,1.13569,2640.1,2639.9,0.37882]
[1727181710271,0.3788,2640.0,2639.9,0.37882]
[1727181710466,3.0388,2640.0,2639.9,0.37882]
[1727181710979,2.66,2640.0,2639.9,0.37882]
[1727181711971,2.66,2640.0,2639.6,0.7887]
[1727181711972,0.37882,2639.9,2639.8,0.37882]
[1727181712565,2.66,2640.0,2639.9,0.37882]
[1727181712566,3.03881,2640.0,2639.9,0.37882]
[1727181714265,2.66,2640.0,2639.9,0.37882]
[1727181714867,3.0388,2640.0,2639.9,0.37882]
[1727181715673,2.66,2640.0,2639.9,0.37882]
[1727181715870,1.48677215,2640.2,2640.1,0.37879]
[1727181716062,3.58656,2640.3,2640.2,0.37877]
[1727181716063,3.58657,2640.3,2640.2,0.37877]
[1727181716267,3.2078,2640.3,2640.2,0.37877]
[1727181717168,3.58656,2640.3,2640.2,0.37877]
[1727181717377,0.37877,2640.2,2640.1,0.3677]
[1727181717569,0.75087,2640.2,2640.1,0.37879]
[1727181717774,0.75087,2640.2,2640.0,1.14639]
[1727181717775,0.37879,2640.1,2640.0,1.14639]
[1727181717975,3.41879,2640.1,2640.0,0.379]
[1727181718373,3.04,2640.1,2639.9,0.37882]
[1727181718571,0.3788,2640.0,2639.9,0.37882]
[1727181719890,0.37881,2640.0,2639.9,0.37882]
[1727181720577,3.4188,2640.1,2639.8,0.7565]
[1727181720779,1.85887215,2640.2,2639.8,0.7565]
[1727181720986,7.73334215,2640.3,2640.2,0.37877]
[1727181721175,5.8678,2640.3,2640.1,0.37878]
[1727181721884,0.37877,2640.2,2640.1,0.37878]
[1727181722180,0.37879,2640.1,2640.0,0.37879]
[1727181722582,0.37878,2640.2,2640.0,0.37879]
[1727181722775,0.37879,2640.1,2640.0,0.37879]
[1727181722980,0.37878,2640.2,2639.9,3.96284597]
[1727181723185,0.3788,2640.1,2639.9,4.34164597]
[1727181723482,0.74229,2640.1,2640.0,0.3788]
[1727181723680,3.0388,2640.0,2639.9,4.34165597]
[1727181724074,3.0388,2640.0,2639.9,3.96284597]
[1727181724275,3.0388,2640.0,2639.9,4.34166597]
[1727181724476,3.4351,2640.0,2639.9,4.34166597]
[1727181725282,3.4351,2640.0,2639.9,3.96284597]
[1727181725487,0.37882,2639.9,2639.8,0.7565]
[1727181726584,3.43511,2640.0,2639.9,0.37882]
[1727181727283,0.37882,2639.9,2639.8,1.13532]
[1727181728576,3.43511,2640.0,2639.9,0.37882]
[1727181728977,3.0563,2640.0,2639.8,0.7565]
[1727181729178,8.30149215,2640.3,2639.8,0.7565]
[1727181729388,0.37878,2640.2,2640.1,0.37878]
[1727181729581,4.91614215,2640.3,2640.2,0.37877]
[1727181729780,3.42937,2640.3,2640.2,0.37877]
[1727181731295,0.37878,2640.2,2640.1,0.37878]
[1727181733189,0.37878,2640.2,2639.8,1.70357]
[1727181733190,0.37879,2640.1,2640.0,0.37879]
[1727181733391,0.37881,2640.0,2639.9,0.3788]
[1727181733589,0.37881,2640.0,2639.8,1.13532]
[1727181733792,2.66,2640.1,2639.8,1.13532]
[1727181733793,0.37882,2639.9,2639.8,1.13532]
[1727181734404,0.37881,2640.0,2639.9,0.37881]
[1727181736283,3.0388,2640.1,2640.0,0.3788]
[1727181737092,6.2466,2640.1,2640.0,0.3788]
[1727181737901,0.37881,2640.0,2639.9,0.37881]
[1727181739092,6.2466,2640.1,2640.0,0.3788]
[1727181739490,3.0388,2640.1,2640.0,0.3788]
[1727181739693,0.37881,2640.0,2639.9,0.37881]
[1727181739887,6.2466,2640.1,2640.0,0.3788]
[1727181740496,7.73337215,2640.1,2640.0,0.3788]
[1727181740891,6.24659,2640.1,2640.0,0.3788]
[1727181741094,1.48677215,2640.3,2640.1,0.94698]
[1727181741291,1.48677215,2640.6,2640.2,4.31090242]
[1727181741497,0.37876,2640.3,2640.2,4.91879199]
[1727181742093,0.37876,2640.3,2640.2,5.29756199]
[1727181743700,0.37876,2640.3,2640.2,9.08476199]
[1727181744201,0.37876,2640.3,2640.2,5.29756199]
[1727181746703,4.52552215,2640.4,2640.3,0.37876]
[1727181747294,0.37876,2640.3,2640.2,5.29756199]
[1727181748406,4.14677215,2640.4,2640.3,0.37876]
[1727181748407,1.86552215,2640.4,2640.3,0.37876]
[1727181748704,1.48677215,2640.4,2640.3,0.37876]
[1727181748914,2.47975758,2640.7,2640.4,0.37874]
[1727181748915,1.48898546,2640.5,2640.4,0.37874]
[1727181749099,2.36251606,2640.7,2640.6,0.37872]
[1727181749100,1.48898546,2640.7,2640.6,0.37872]
[1727181750611,1.48898546,2640.7,2640.3,5.6377664]
[1727181750612,1.86767546,2640.8,2640.7,0.3787]
[1727181750910,1.86767546,2640.8,2640.5,0.99107533]
[1727181750911,2.66,2640.8,2640.5,0.37872]
[1727181751103,0.99238942,2640.6,2640.5,0.37872]
[1727181751901,0.37873,2640.5,2640.4,0.99107533]
[1727181752109,0.37874,2640.4,2640.3,4.57762533]
[1727181752604,0.37874,2640.4,2640.3,3.58655]
[1727181752916,1.74452942,2640.5,2640.4,0.37874]
[1727181765012,0.37874,2640.4,2640.3,0.75015]
[1727181765816,0.37874,2640.4,2640.3,0.3714]
[1727181766119,1.37112942,2640.4,2640.3,0.3714]
[1727181766307,1.37112942,2640.4,2640.3,0.75016]
[1727181766610,1.77102942,2640.4,2640.3,0.75016]
[1727181766912,1.37112942,2640.4,2640.3,0.75016]
[1727181772015,1.36564513,2640.5,2640.4,0.37874]
[1727181772413,0.99224513,2640.5,2640.4,0.37874]
[1727181773526,1.37097513,2640.5,2640.4,0.37874]
[1727181774316,0.99224513,2640.5,2640.4,0.37874]
[1727181774516,3.42647758,2640.9,2640.5,0.94683]
[1727181774517,1.48858413,2640.9,2640.5,0.94683]
[1727181774719,4.69638413,2641.0,2640.9,0.37867]
[1727181774918,3.2078,2641.0,2640.9,0.37867]
[1727181776008,3.58646,2641.0,2640.9,0.37867]
[1727181776221,3.2078,2641.0,2640.9,0.37867]
[1727181777323,4.4378,2641.0,2640.9,0.37867]
[1727181777521,3.2078,2641.0,2640.9,0.37867]
[1727181777822,4.81647,2641.0,2640.8,0.37868]
[1727181778217,4.81647,2641.0,2640.9,0.37867]
[1727181778419,3.58647,2641.0,2640.9,0.37867]
[1727181778927,3.2078,2641.0,2640.9,0.37867]
[1727181779318,5.26423413,2641.1,2641.0,0.37866]
[1727181779518,3.32587606,2641.3,2641.1,0.37864]
[1727181779519,1.48858413,2641.2,2641.1,0.37864]
[1727181779722,1.98380606,2641.3,2641.2,0.37863]
[1727181779723,1.48858413,2641.3,2641.2,0.37863]
[1727181779933,1.86720413,2641.4,2641.2,0.37863]
[1727181780121,1.86720413,2641.4,2641.3,0.37862]
[1727181780323,1.48858413,2641.4,2641.3,0.37862]
[1727181780520,1.48858413,2641.5,2641.4,0.3786]
[1727181780721,3.2078,2641.7,2641.6,0.37857]
[1727181781222,1.48858413,2642.1,2641.8,0.37854]
[1727181781521,0.37851,2642.1,2641.9,0.37852]
[1727181781713,0.37851,2642.1,2641.9,4.40335516]
[1727181782129,0.37849,2642.2,2642.0,0.37851]
[1727181782327,1.17448,2642.3,2642.1,0.3785]
[1727181782824,1.17448,2642.3,2642.0,1.15371]
[1727181783019,0.796,2642.3,2642.0,0.7752]
[1727181783328,0.796,2642.3,2642.0,1.15371]
[1727181783329,0.37849,2642.2,2642.0,1.15371]
[1727181783715,0.3785,2642.1,2642.0,0.3886]
[1727181783923,0.796,2642.3,2641.6,0.3866]
[1727181783924,3.60623,2642.2,2641.6,0.3866]
[1727181784115,3.60623,2642.2,2641.7,0.37855]
[1727181784116,0.37853,2641.9,2641.7,0.37855]
[1727181784323,0.3955,2641.8,2641.6,4.46731826]
[1727181784522,0.7804,2641.8,2641.6,4.46731826]
[1727181785020,0.37856,2641.7,2641.6,4.07871826]
[1727181785221,3.03856,2641.7,2641.6,4.07871826]
[1727181790737,0.3786,2641.5,2641.3,0.37861]
[1727181790935,0.3786,2641.5,2641.1,0.37863]
[1727181790936,0.37862,2641.3,2641.1,0.37863]
[1727181791126,0.37863,2641.2,2641.1,0.37863]
[1727181791327,0.37863,2641.2,2641.1,4.5712231]
[1727181791528,0.75392,2641.3,2641.2,0.37863]
[1727181792135,0.3753,2641.3,2641.1,4.5712331]
[1727181792339,0.75392,2641.3,2641.2,0.37863]
[1727181792525,0.3753,2641.3,2641.2,0.37863]
[1727181793241,0.37861,2641.4,2641.3,0.37862]
[1727181793831,0.37861,2641.4,2641.3,0.37861]
[1727181795738,0.7659,2641.6,2641.2,0.396]
[1727181795739,0.37859,2641.5,2641.4,0.3786]
[1727181797039,1.14448,2641.6,2641.5,0.37859]
[1727181797242,0.37859,2641.5,2641.3,0.3798]
[1727181797543,0.7659,2641.6,2641.3,4.6715999]
[1727181797744,0.37859,2641.5,2641.4,0.37859]
[1727181797944,1.14448,2641.6,2641.5,0.37859]
[1727181798240,1.14448,2641.6,2641.3,4.6715999]
[1727181798241,0.37859,2641.5,2641.4,0.37859]
[1727181800232,0.75388,2641.6,2641.5,0.37859]
[1727181802048,0.3753,2641.6,2641.5,0.37859]
[1727181803548,0.37855,2641.8,2641.7,0.37856]
[1727181804152,0.7513,2641.9,2641.8,0.37854]
[1727181804648,1.12983,2641.9,2641.8,0.37854]
[1727181804849,0.7513,2641.9,2641.8,0.37854]
[1727181805245,0.37854,2641.8,2641.7,0.37855]
[1727181806746,0.7513,2641.9,2641.7,0.37855]
[1727181806941,1.12983,2641.9,2641.8,0.37854]
[1727181808845,0.3853,2641.9,2641.8,0.37854]
[1727181809044,0.76383,2641.9,2641.8,0.37854]
[1727181811855,0.3853,2641.9,2641.8,0.37854]
[1727181813359,0.76383,2641.9,2641.8,0.37854]
[1727181813746,0.3853,2641.9,2641.7,0.37855]
[1727181814062,0.37856,2641.7,2641.6,0.3643]
[1727181814257,0.37856,2641.7,2641.6,0.74287]
[1727181814258,3.58636,2641.7,2641.6,0.74287]
[1727181814462,4.81636,2641.7,2641.6,0.3643]
[1727181814654,0.94644,2641.6,2641.1,3.2078]
[1727181814963,0.94644,2641.6,2641.2,0.75292]
[1727181814964,0.37862,2641.3,2641.2,0.75292]
[1727181815250,0.37862,2641.3,2641.2,0.37862]
[1727181815457,1.60862,2641.3,2641.2,0.37862]
[1727181816262,0.37863,2641.2,2641.1,4.72413468]
[1727181816464,0.37864,2641.1,2641.0,5.98680121]
[1727181816751,0.37864,2641.1,2640.8,3.2078]
[1727181816752,0.37867,2640.9,2640.8,3.2078]
[1727181817552,0.37869,2640.8,2640.7,0.3947]
[1727181817754,0.74349,2640.9,2640.8,0.37869]
[1727181817958,0.37869,2640.8,2640.7,0.37869]
[1727181818454,0.3648,2640.9,2640.6,0.3947]
[1727181818754,0.37869,2640.8,2640.7,0.37869]
[1727181818956,0.74348,2640.9,2640.8,0.37869]
[1727181819153,0.3648,2640.9,2640.8,0.37869]
[1727181819358,0.74347,2640.9,2640.8,0.37869]
[1727181819844,0.3648,2640.9,2640.8,0.37869]
[1727181821046,0.76546,2641.0,2640.9,0.37867]
[1727181821257,0.3868,2641.0,2640.9,0.37867]
[1727181822660,0.77955,2641.1,2641.0,0.37866]
[1727181822962,0.4009,2641.1,2641.0,0.37866]
[1727181823157,0.77954,2641.1,2641.0,0.37866]
[1727181825653,0.77954,2641.1,2640.8,4.07170562]
[1727181825654,3.0609,2641.1,2640.8,4.07170562]
[1727181825859,0.3787,2640.7,2640.6,0.99004406]
[1727181826062,0.37872,2640.6,2640.5,0.37872]
[1727181826258,1.10332,2640.6,2640.5,0.37872]